[Event "Live Chess"]
[Site "Chess.com"]
[Date "2023.05.20"]
[Round "-"]
[White "Brooms1989"]
[Black "Chesscoach_Golichenko"]
[Result "0-1"]
[WhiteElo "986"]
[BlackElo "2647"]
[TimeControl "300"]
[EndTime "10:23:55 PDT"]
[Termination "Chesscoach_Golichenko won by checkmate"]

1. e4 {[%clk 0:04:55.2]} 1... Nf6 {[%clk 0:04:58.5]} 2. Nc3 {[%clk 0:04:52.3]}
2... d6 {[%clk 0:04:55.1]} 3. Nf3 {[%clk 0:04:44.4]} 3... g6 {[%clk 0:04:52.6]}
4. d4 {[%clk 0:04:41.5]} 4... Bg7 {[%clk 0:04:51.3]} 5. Bd3 {[%clk 0:04:35.8]}
5... O-O {[%clk 0:04:44.9]} 6. O-O {[%clk 0:04:34.8]} 6... c6 {[%clk 0:04:40.6]}
7. h3 {[%clk 0:04:31.5]} 7... b5 {[%clk 0:04:37]} 8. Bd2 {[%clk 0:04:15.8]} 8...
a5 {[%clk 0:04:26.9]} 9. Qc1 {[%clk 0:04:11.3]} 9... b4 {[%clk 0:04:24]} 10. Ne2
{[%clk 0:04:08.9]} 10... Ba6 {[%clk 0:04:21.3]} 11. Bxa6 {[%clk 0:04:06.1]}
11... Nxa6 {[%clk 0:04:18]} 12. Bh6 {[%clk 0:04:05.6]} 12... Nxe4 {[%clk
0:04:16.7]} 13. Bxg7 {[%clk 0:03:59.8]} 13... Kxg7 {[%clk 0:04:15.5]} 14. Ng3
{[%clk 0:03:51.6]} 14... Nxg3 {[%clk 0:04:11.5]} 15. fxg3 {[%clk 0:03:51.5]}
15... Nc7 {[%clk 0:04:06.5]} 16. c3 {[%clk 0:03:22.8]} 16... c5 {[%clk
0:04:03.1]} 17. dxc5 {[%clk 0:03:17.2]} 17... dxc5 {[%clk 0:04:01.5]} 18. Rd1
{[%clk 0:03:16.6]} 18... Qc8 {[%clk 0:03:54.9]} 19. Qc2 {[%clk 0:02:58.8]} 19...
Rd8 {[%clk 0:03:45.9]} 20. Rxd8 {[%clk 0:02:56.7]} 20... Qxd8 {[%clk 0:03:41.4]}
21. Rd1 {[%clk 0:02:56.1]} 21... Qe8 {[%clk 0:03:38.6]} 22. Qe4 {[%clk
0:02:43.5]} 22... Ne6 {[%clk 0:03:28.6]} 23. h4 {[%clk 0:02:24]} 23... Rd8
{[%clk 0:03:19.3]} 24. Qe5+ {[%clk 0:02:16.3]} 24... Kg8 {[%clk 0:03:08.7]} 25.
Rxd8 {[%clk 0:02:06.1]} 25... Qxd8 {[%clk 0:03:08.6]} 26. Ng5 {[%clk 0:01:56.4]}
26... Nxg5 {[%clk 0:02:54.3]} 27. Qxg5 {[%clk 0:01:55.1]} 27... Qd6 {[%clk
0:02:50]} 28. h5 {[%clk 0:01:46.6]} 28... Qd1+ {[%clk 0:02:48.7]} 29. Kh2 {[%clk
0:01:44.3]} 29... Qxh5+ {[%clk 0:02:47.4]} 30. Qxh5 {[%clk 0:01:41.8]} 30...
gxh5 {[%clk 0:02:47.3]} 31. Kh3 {[%clk 0:01:40.8]} 31... Kg7 {[%clk 0:02:45.9]}
32. Kh4 {[%clk 0:01:40.1]} 32... Kg6 {[%clk 0:02:44.9]} 33. g4 {[%clk
0:01:38.7]} 33... hxg4 {[%clk 0:02:42.7]} 34. Kxg4 {[%clk 0:01:38.6]} 34... e5
{[%clk 0:02:41.7]} 35. Kf3 {[%clk 0:01:37.4]} 35... f5 {[%clk 0:02:40.9]} 36. g3
{[%clk 0:01:36.2]} 36... h5 {[%clk 0:02:39.8]} 37. cxb4 {[%clk 0:01:32.6]} 37...
cxb4 {[%clk 0:02:38.4]} 38. Kg2 {[%clk 0:01:30.4]} 38... Kg5 {[%clk 0:02:36.7]}
39. Kf3 {[%clk 0:01:29.3]} 39... e4+ {[%clk 0:02:35.2]} 40. Kf2 {[%clk
0:01:28.1]} 40... Kg4 {[%clk 0:02:34.6]} 41. Kg2 {[%clk 0:01:27.1]} 41... a4
{[%clk 0:02:33.6]} 42. Kf2 {[%clk 0:01:25.6]} 42... a3 {[%clk 0:02:30.5]} 43. b3
{[%clk 0:01:24.4]} 43... h4 {[%clk 0:02:27.2]} 44. gxh4 {[%clk 0:01:21.9]} 44...
f4 {[%clk 0:02:23.9]} 45. h5 {[%clk 0:01:20.4]} 45... Kxh5 {[%clk 0:02:22.8]}
46. Ke2 {[%clk 0:01:18.4]} 46... Kg4 {[%clk 0:02:21.3]} 47. Kf2 {[%clk
0:01:17.6]} 47... f3 {[%clk 0:02:20.6]} 48. Kf1 {[%clk 0:01:16]} 48... Kg3
{[%clk 0:02:19.8]} 49. Kg1 {[%clk 0:01:15.1]} 49... e3 {[%clk 0:02:18.7]} 50.
Kf1 {[%clk 0:01:14.3]} 50... Kf4 {[%clk 0:02:17.8]} 51. Kg1 {[%clk 0:01:13]}
51... Ke4 {[%clk 0:02:15.9]} 52. Kf1 {[%clk 0:01:12.2]} 52... Kd3 {[%clk
0:02:15]} 53. Ke1 {[%clk 0:01:11.4]} 53... f2+ {[%clk 0:02:13.8]} 54. Kf1 {[%clk
0:01:10.5]} 54... Kd2 {[%clk 0:02:12.7]} 55. Kg2 {[%clk 0:01:09.2]} 55... Ke2
{[%clk 0:02:09.4]} 56. Kg3 {[%clk 0:01:07.9]} 56... f1=Q {[%clk 0:02:08.6]} 57.
Kg4 {[%clk 0:01:07.1]} 57... Qf3+ {[%clk 0:02:07.3]} 58. Kh4 {[%clk 0:01:06]}
58... Kf2 {[%clk 0:02:06.9]} 59. Kg5 {[%clk 0:01:05]} 59... e2 {[%clk
0:02:06.2]} 60. Kg6 {[%clk 0:01:03.9]} 60... e1=Q {[%clk 0:02:06.1]} 61. Kg5
{[%clk 0:01:02.7]} 61... Qg1+ {[%clk 0:02:04.4]} 62. Kh4 {[%clk 0:01:02.5]}
62... Qfh1# {[%clk 0:02:03.9]} 0-1

[Event "Live Chess"]
[Site "Chess.com"]
[Date "2023.05.20"]
[Round "-"]
[White "Ishaan1618"]
[Black "ranvir123"]
[Result "0-1"]
[WhiteElo "618"]
[BlackElo "897"]
[TimeControl "300"]
[EndTime "10:24:01 PDT"]
[Termination "ranvir123 won on time"]

1. f4 {[%clk 0:04:54]} 1... e5 {[%clk 0:04:59.9]} 2. Nh3 {[%clk 0:04:43.9]} 2...
exf4 {[%clk 0:04:55.2]} 3. Nxf4 {[%clk 0:04:41.4]} 3... Qh4+ {[%clk 0:04:51.6]}
4. g3 {[%clk 0:04:21.2]} 4... Qf6 {[%clk 0:04:49.7]} 5. d3 {[%clk 0:04:01.2]}
5... Bc5 {[%clk 0:04:47.3]} 6. Na3 {[%clk 0:03:44.3]} 6... g5 {[%clk 0:04:43.2]}
7. Nd5 {[%clk 0:03:32.9]} 7... Qf2+ {[%clk 0:04:39.3]} 8. Kd2 {[%clk 0:03:15]}
8... Be3+ {[%clk 0:04:34.9]} 9. Nxe3 {[%clk 0:02:41.8]} 9... Nc6 {[%clk
0:04:29.1]} 10. Nf5 {[%clk 0:02:14.8]} 10... Qxf5 {[%clk 0:04:26.5]} 11. e4
{[%clk 0:02:07.2]} 11... Qf2+ {[%clk 0:04:23]} 12. Qe2 {[%clk 0:02:00.6]} 12...
Qxe2+ {[%clk 0:04:19]} 13. Bxe2 {[%clk 0:01:55.9]} 13... Nge7 {[%clk 0:04:15.1]}
14. b3 {[%clk 0:01:45.5]} 14... f6 {[%clk 0:04:04.6]} 15. Bb2 {[%clk 0:01:42.9]}
15... Rf8 {[%clk 0:04:02.1]} 16. Bxf6 {[%clk 0:01:39.7]} 16... Rxf6 {[%clk
0:03:59.7]} 17. Bh5+ {[%clk 0:01:29.8]} 17... Ng6 {[%clk 0:03:57.1]} 18. Bxg6+
{[%clk 0:01:25.2]} 18... hxg6 {[%clk 0:03:53.4]} 19. e5 {[%clk 0:01:09.4]} 19...
Nxe5 {[%clk 0:03:51.3]} 20. Nc4 {[%clk 0:01:02.9]} 20... Nxc4+ {[%clk
0:03:49.2]} 21. bxc4 {[%clk 0:01:00.5]} 21... c6 {[%clk 0:03:44.6]} 22. Rhe1+
{[%clk 0:00:59.3]} 22... Re6 {[%clk 0:03:42.4]} 23. Rxe6+ {[%clk 0:00:55.2]}
23... dxe6 {[%clk 0:03:42]} 24. Ke3 {[%clk 0:00:51.8]} 24... b5 {[%clk
0:03:40.3]} 25. cxb5 {[%clk 0:00:49.6]} 25... cxb5 {[%clk 0:03:38.9]} 26. Rb1
{[%clk 0:00:47.8]} 26... Ba6 {[%clk 0:03:37.1]} 27. d4 {[%clk 0:00:41.5]} 27...
Rc8 {[%clk 0:03:35.8]} 28. d5 {[%clk 0:00:39.5]} 28... exd5 {[%clk 0:03:34.2]}
29. Kd4 {[%clk 0:00:37.5]} 29... Rxc2 {[%clk 0:03:33.6]} 30. Kxd5 {[%clk
0:00:36.3]} 30... Rxh2 {[%clk 0:03:33.2]} 31. Rg1 {[%clk 0:00:27.9]} 31... Rxa2
{[%clk 0:03:31.5]} 32. Rh1 {[%clk 0:00:21]} 32... Kf7 {[%clk 0:03:25.5]} 33. Rh4
{[%clk 0:00:18.5]} 33... b4 {[%clk 0:03:22]} 34. Rg4 {[%clk 0:00:17.4]} 34...
Rb2 {[%clk 0:03:19.2]} 35. Rxg5 {[%clk 0:00:16.4]} 35... b3 {[%clk 0:03:17.4]}
36. Re5 {[%clk 0:00:13.9]} 36... Rd2+ {[%clk 0:03:15.2]} 37. Kc5 {[%clk
0:00:08.5]} 37... b2 {[%clk 0:03:14]} 38. Re1 {[%clk 0:00:06.9]} 38... Rc2+
{[%clk 0:03:11.8]} 39. Kd5 {[%clk 0:00:02.1]} 39... Rc1 {[%clk 0:03:10.8]} 0-1

[Event "Live Chess"]
[Site "Chess.com"]
[Date "2023.05.20"]
[Round "-"]
[White "NAZRIZ1977"]
[Black "f4nomore"]
[Result "1-0"]
[WhiteElo "2120"]
[BlackElo "1365"]
[TimeControl "300"]
[EndTime "10:24:03 PDT"]
[Termination "NAZRIZ1977 won by resignation"]

1. c4 {[%clk 0:04:57.7]} 1... g6 {[%clk 0:04:59.9]} 2. g3 {[%clk 0:04:56.8]}
2... Bg7 {[%clk 0:04:59.8]} 3. Bg2 {[%clk 0:04:56.3]} 3... d6 {[%clk 0:04:59.7]}
4. Nf3 {[%clk 0:04:54.8]} 4... Nf6 {[%clk 0:04:57.7]} 5. O-O {[%clk 0:04:54.2]}
5... O-O {[%clk 0:04:55.8]} 6. Nc3 {[%clk 0:04:53.6]} 6... c5 {[%clk 0:04:54.7]}
7. Rb1 {[%clk 0:04:52.6]} 7... Nc6 {[%clk 0:04:53.7]} 8. a3 {[%clk 0:04:52.2]}
8... Bg4 {[%clk 0:04:50.2]} 9. b4 {[%clk 0:04:49.3]} 9... cxb4 {[%clk
0:04:47.4]} 10. axb4 {[%clk 0:04:48.4]} 10... Rc8 {[%clk 0:04:44.8]} 11. b5
{[%clk 0:04:47]} 11... Ne5 {[%clk 0:04:41.1]} 12. Nxe5 {[%clk 0:04:44.9]} 12...
dxe5 {[%clk 0:04:39.6]} 13. d3 {[%clk 0:04:44.5]} 13... Nd7 {[%clk 0:04:10.7]}
14. Bxb7 {[%clk 0:04:40.4]} 14... Rb8 {[%clk 0:04:08.3]} 15. Bg2 {[%clk
0:04:39]} 15... Nc5 {[%clk 0:03:56.2]} 16. h3 {[%clk 0:04:37.8]} 16... Be6
{[%clk 0:03:47.9]} 17. Be3 {[%clk 0:04:35.4]} 17... Nd7 {[%clk 0:03:36.9]} 18.
Bxa7 {[%clk 0:04:33.4]} 18... Rc8 {[%clk 0:03:32.4]} 19. b6 {[%clk 0:04:29.8]}
19... Nxb6 {[%clk 0:03:15.4]} 20. Bxb6 {[%clk 0:04:28.4]} 20... Qd7 {[%clk
0:03:12.9]} 21. Kh2 {[%clk 0:04:26.6]} 21... e4 {[%clk 0:02:56.5]} 22. Nxe4
{[%clk 0:04:24.2]} 22... f5 {[%clk 0:02:50.7]} 23. Nc5 {[%clk 0:04:20.9]} 23...
Qd6 {[%clk 0:02:40.6]} 24. Nxe6 {[%clk 0:04:20]} 24... Bh6 {[%clk 0:02:31.4]}
25. Nxf8 {[%clk 0:04:17.7]} 25... Rxf8 {[%clk 0:02:29.2]} 26. c5 {[%clk
0:04:16.9]} 26... Qe5 {[%clk 0:02:20.8]} 27. c6 {[%clk 0:04:13.4]} 27... f4
{[%clk 0:02:18.2]} 28. c7 {[%clk 0:04:08.5]} 28... fxg3+ {[%clk 0:02:13.2]} 29.
fxg3 {[%clk 0:04:07.5]} 29... Re8 {[%clk 0:01:59.9]} 30. Qb3+ {[%clk 0:04:00.5]}
30... e6 {[%clk 0:01:48.8]} 31. Qb2 {[%clk 0:03:59.3]} 31... Qd6 {[%clk
0:01:37.5]} 32. Qf6 {[%clk 0:03:48.8]} 32... Bg7 {[%clk 0:01:33.1]} 33. Qf7+
{[%clk 0:03:46.7]} 33... Kh8 {[%clk 0:01:32.1]} 34. Qxe8+ {[%clk 0:03:45.9]} 1-0

[Event "Live Chess"]
[Site "Chess.com"]
[Date "2023.05.20"]
[Round "-"]
[White "Duke_of_Bebington"]
[Black "Ian-Morley"]
[Result "1-0"]
[WhiteElo "1583"]
[BlackElo "1032"]
[TimeControl "300"]
[EndTime "10:24:04 PDT"]
[Termination "Duke_of_Bebington won by checkmate"]

1. e4 {[%clk 0:04:56.2]} 1... d5 {[%clk 0:04:58.8]} 2. exd5 {[%clk 0:04:54.8]}
2... Qxd5 {[%clk 0:04:57.6]} 3. d4 {[%clk 0:04:53.8]} 3... Qd8 {[%clk
0:04:56.4]} 4. Nf3 {[%clk 0:04:50.1]} 4... Nf6 {[%clk 0:04:55.5]} 5. Nc3 {[%clk
0:04:49]} 5... e6 {[%clk 0:04:51.5]} 6. Bb5+ {[%clk 0:04:40.8]} 6... Bd7 {[%clk
0:04:49.2]} 7. Be2 {[%clk 0:04:39.8]} 7... Bb4 {[%clk 0:04:46]} 8. O-O {[%clk
0:04:35.7]} 8... Bxc3 {[%clk 0:04:44.4]} 9. bxc3 {[%clk 0:04:34.6]} 9... O-O
{[%clk 0:04:43.8]} 10. Bg5 {[%clk 0:04:31.2]} 10... h6 {[%clk 0:04:41.8]} 11.
Bh4 {[%clk 0:04:29.7]} 11... g5 {[%clk 0:04:40.9]} 12. Nxg5 {[%clk 0:04:25.4]}
12... hxg5 {[%clk 0:04:37.3]} 13. Bxg5 {[%clk 0:04:25.3]} 13... e5 {[%clk
0:04:32.7]} 14. Bd3 {[%clk 0:04:20.6]} 14... exd4 {[%clk 0:04:31]} 15. cxd4
{[%clk 0:04:18.6]} 15... Nc6 {[%clk 0:04:19.5]} 16. Qf3 {[%clk 0:04:13.7]} 16...
Qe7 {[%clk 0:04:16.6]} 17. Bxf6 {[%clk 0:04:07]} 17... Qe6 {[%clk 0:04:13.6]}
18. Qh5 {[%clk 0:03:57.6]} 18... Qf5 {[%clk 0:03:49.8]} 19. Bxf5 {[%clk
0:03:55.3]} 19... Bxf5 {[%clk 0:03:48.4]} 20. Qh8# {[%clk 0:03:51.9]} 1-0

[Event "Live Chess"]
[Site "Chess.com"]
[Date "2023.05.20"]
[Round "-"]
[White "MrDodgy"]
[Black "yarek"]
[Result "1-0"]
[WhiteElo "2322"]
[BlackElo "1895"]
[TimeControl "300"]
[EndTime "10:24:12 PDT"]
[Termination "MrDodgy won on time"]

1. d4 {[%clk 0:04:56.5]} 1... g6 {[%clk 0:04:58.2]} 2. c4 {[%clk 0:04:55.5]}
2... Bg7 {[%clk 0:04:58]} 3. h4 {[%clk 0:04:46.3]} 3... h5 {[%clk 0:04:55]} 4.
Nc3 {[%clk 0:04:41]} 4... c6 {[%clk 0:04:53.1]} 5. e4 {[%clk 0:04:38.3]} 5... d6
{[%clk 0:04:48.7]} 6. Nf3 {[%clk 0:04:36.5]} 6... Bg4 {[%clk 0:04:42.3]} 7. Bg5
{[%clk 0:04:33.6]} 7... f6 {[%clk 0:04:19.3]} 8. Be3 {[%clk 0:04:29.3]} 8... Nh6
{[%clk 0:04:16]} 9. Qd2 {[%clk 0:04:26.5]} 9... Bxf3 {[%clk 0:04:14.1]} 10. gxf3
{[%clk 0:04:24.2]} 10... Nd7 {[%clk 0:04:09.9]} 11. O-O-O {[%clk 0:04:18.6]}
11... Qa5 {[%clk 0:04:02]} 12. Kb1 {[%clk 0:04:08.6]} 12... O-O-O {[%clk
0:03:59.3]} 13. Rg1 {[%clk 0:04:06.8]} 13... Nf8 {[%clk 0:03:52.3]} 14. f4
{[%clk 0:03:52.9]} 14... Ng4 {[%clk 0:03:48.6]} 15. Bh3 {[%clk 0:03:50.7]} 15...
f5 {[%clk 0:03:45.4]} 16. exf5 {[%clk 0:03:38.9]} 16... gxf5 {[%clk 0:03:43.4]}
17. Qd3 {[%clk 0:03:26.5]} 17... e6 {[%clk 0:03:38]} 18. Rde1 {[%clk 0:03:13.3]}
18... d5 {[%clk 0:03:22]} 19. c5 {[%clk 0:03:01.9]} 19... Ng6 {[%clk 0:03:14.8]}
20. f3 {[%clk 0:02:53.3]} 20... Nxe3 {[%clk 0:02:22.7]} 21. Rxg6 {[%clk
0:02:47.2]} 21... Nc4 {[%clk 0:01:42.9]} 22. Rxg7 {[%clk 0:02:37.4]} 22... Rhg8
{[%clk 0:01:34.5]} 23. Reg1 {[%clk 0:02:31.3]} 23... Rxg7 {[%clk 0:01:31.3]} 24.
Rxg7 {[%clk 0:02:31.2]} 24... Qb4 {[%clk 0:01:25.5]} 25. Rg2 {[%clk 0:02:16.5]}
25... a5 {[%clk 0:01:06]} 26. b3 {[%clk 0:01:46.2]} 26... Na3+ {[%clk 0:00:20]}
27. Ka1 {[%clk 0:01:32.8]} 27... Kb8 {[%clk 0:00:17.1]} 28. Nb1 {[%clk
0:01:12.7]} 28... Nb5 {[%clk 0:00:08.7]} 29. Rd2 {[%clk 0:01:06.3]} 29... a4
{[%clk 0:00:07.3]} 30. a3 {[%clk 0:01:00.4]} 30... Nxa3 {[%clk 0:00:01.4]} 31.
bxa4 {[%clk 0:00:48.4]} 1-0

[Event "Live Chess"]
[Site "Chess.com"]
[Date "2023.05.20"]
[Round "-"]
[White "JoshMcK"]
[Black "Pandreq"]
[Result "0-1"]
[WhiteElo "1528"]
[BlackElo "1272"]
[TimeControl "300"]
[EndTime "10:24:13 PDT"]
[Termination "Pandreq won by resignation"]

1. e4 {[%clk 0:04:59.2]} 1... Nf6 {[%clk 0:04:57.9]} 2. e5 {[%clk 0:04:58.2]}
2... Nd5 {[%clk 0:04:56.8]} 3. d4 {[%clk 0:04:58.1]} 3... d6 {[%clk 0:04:55.7]}
4. c4 {[%clk 0:04:57.3]} 4... Nb6 {[%clk 0:04:54.1]} 5. f4 {[%clk 0:04:56.8]}
5... Bf5 {[%clk 0:04:50.5]} 6. Nc3 {[%clk 0:04:54.8]} 6... Nc6 {[%clk
0:04:41.3]} 7. Nf3 {[%clk 0:04:53.8]} 7... Nb4 {[%clk 0:04:39.7]} 8. c5 {[%clk
0:04:02.2]} 8... dxc5 {[%clk 0:04:30.2]} 9. d5 {[%clk 0:03:54.8]} 9... Nc2+
{[%clk 0:04:21.2]} 10. Kf2 {[%clk 0:03:53.5]} 10... Nxa1 {[%clk 0:04:17.5]} 11.
Bb5+ {[%clk 0:03:52.9]} 11... Bd7 {[%clk 0:04:04.9]} 12. Bxd7+ {[%clk
0:03:50.8]} 12... Qxd7 {[%clk 0:04:01.9]} 13. Be3 {[%clk 0:03:50.7]} 13... c6
{[%clk 0:03:26.1]} 14. Bxc5 {[%clk 0:03:42]} 14... Nxd5 {[%clk 0:03:19.8]} 15.
Nxd5 {[%clk 0:03:40.2]} 15... Qxd5 {[%clk 0:03:18.3]} 16. Qxd5 {[%clk 0:03:39]}
16... cxd5 {[%clk 0:03:17.4]} 17. Rxa1 {[%clk 0:03:38.4]} 17... b6 {[%clk
0:03:12.7]} 18. Bb4 {[%clk 0:03:34.7]} 18... e6 {[%clk 0:03:08.9]} 19. Rc1
{[%clk 0:03:31.6]} 19... Bxb4 {[%clk 0:03:05.7]} 20. a3 {[%clk 0:03:30.1]} 20...
Bc5+ {[%clk 0:03:03.7]} 0-1

[Event "Live Chess"]
[Site "Chess.com"]
[Date "2023.05.20"]
[Round "-"]
[White "Bot_Boy"]
[Black "Fazer180"]
[Result "0-1"]
[WhiteElo "325"]
[BlackElo "1700"]
[TimeControl "300"]
[EndTime "10:24:22 PDT"]
[Termination "Fazer180 won on time"]

1. Nf3 {[%clk 0:04:57.9]} 1... e6 {[%clk 0:04:59.8]} 2. e4 {[%clk 0:04:55.8]}
2... d5 {[%clk 0:04:55.2]} 3. e5 {[%clk 0:04:52.6]} 3... c5 {[%clk 0:04:53.4]}
4. Be2 {[%clk 0:04:44.7]} 4... Nc6 {[%clk 0:04:52.5]} 5. d3 {[%clk 0:04:41.1]}
5... Qc7 {[%clk 0:04:50.8]} 6. Bf4 {[%clk 0:04:28.6]} 6... Nge7 {[%clk
0:04:48.9]} 7. g4 {[%clk 0:04:22.3]} 7... Ng6 {[%clk 0:04:46.3]} 8. Qd2 {[%clk
0:04:12]} 8... Ngxe5 {[%clk 0:04:31.8]} 9. Bxe5 {[%clk 0:04:02.7]} 9... Nxe5
{[%clk 0:04:30.6]} 10. Nxe5 {[%clk 0:03:44.1]} 10... Qxe5 {[%clk 0:04:28.8]} 11.
Nc3 {[%clk 0:03:28.3]} 11... Bd7 {[%clk 0:04:20.2]} 12. a4 {[%clk 0:03:19.7]}
12... Bc6 {[%clk 0:04:14.1]} 13. O-O {[%clk 0:02:22.5]} 13... Bd6 {[%clk
0:04:05.9]} 14. f4 {[%clk 0:02:12.6]} 14... Qd4+ {[%clk 0:04:00.8]} 15. Rf2
{[%clk 0:02:00.5]} 15... Qb4 {[%clk 0:03:48.2]} 16. Ra2 {[%clk 0:01:41.9]} 16...
O-O {[%clk 0:03:39.5]} 17. Bf3 {[%clk 0:01:13.5]} 17... Bxf4 {[%clk 0:03:30.3]}
18. Qe1 {[%clk 0:01:02.7]} 18... Qd4 {[%clk 0:03:24.4]} 19. Ne2 {[%clk
0:00:49.9]} 19... Qe3 {[%clk 0:03:01]} 20. Ra3 {[%clk 0:00:21.1]} 20... Bc7
{[%clk 0:02:43.3]} 21. h4 {[%clk 0:00:14.7]} 21... Bg3 {[%clk 0:02:34.3]} 22. d4
{[%clk 0:00:06.4]} 22... Bxf2+ {[%clk 0:02:32.2]} 23. Qxf2 {[%clk 0:00:04.6]}
23... Qxf2+ {[%clk 0:02:31.2]} 24. Kxf2 {[%clk 0:00:03.6]} 24... cxd4 {[%clk
0:02:31.1]} 25. Nxd4 {[%clk 0:00:01.8]} 25... Rac8 {[%clk 0:02:27.3]} 26. b4
{[%clk 0:00:01.7]} 26... Bd7 {[%clk 0:02:25.2]} 27. b5 {[%clk 0:00:01.6]} 27...
e5 {[%clk 0:02:22.8]} 28. b6 {[%clk 0:00:01.5]} 28... axb6 {[%clk 0:02:20]} 29.
Nf5 {[%clk 0:00:01.4]} 29... Bxf5 {[%clk 0:02:18.6]} 30. Bxd5 {[%clk 0:00:00.3]}
30... Rxc2+ {[%clk 0:02:16.8]} 0-1

[Event "Live Chess"]
[Site "Chess.com"]
[Date "2023.05.20"]
[Round "-"]
[White "alexlines8"]
[Black "daveeeeR"]
[Result "0-1"]
[WhiteElo "1262"]
[BlackElo "1279"]
[TimeControl "300"]
[EndTime "10:24:23 PDT"]
[Termination "daveeeeR won by resignation"]

1. e4 {[%clk 0:04:58.4]} 1... c5 {[%clk 0:04:57.4]} 2. c4 {[%clk 0:04:57.1]}
2... Nc6 {[%clk 0:04:56.4]} 3. Nc3 {[%clk 0:04:52]} 3... e6 {[%clk 0:04:54.8]}
4. d3 {[%clk 0:04:50.5]} 4... Nge7 {[%clk 0:04:53.4]} 5. Nf3 {[%clk 0:04:48.8]}
5... d5 {[%clk 0:04:45.7]} 6. cxd5 {[%clk 0:04:34.2]} 6... exd5 {[%clk
0:04:43.9]} 7. Be2 {[%clk 0:04:23.9]} 7... a6 {[%clk 0:04:40]} 8. O-O {[%clk
0:04:21.4]} 8... d4 {[%clk 0:04:38.5]} 9. Na4 {[%clk 0:04:04.3]} 9... Bd7 {[%clk
0:04:35.6]} 10. Nxc5 {[%clk 0:04:01.1]} 10... Nb4 {[%clk 0:04:19.7]} 11. Nxb7
{[%clk 0:03:34.3]} 11... Qc7 {[%clk 0:04:15.4]} 12. a3 {[%clk 0:03:17.7]} 12...
Nbc6 {[%clk 0:04:03]} 13. Qb3 {[%clk 0:03:12.2]} 13... Rb8 {[%clk 0:03:57.4]}
14. Qc2 {[%clk 0:02:35.3]} 14... Rxb7 {[%clk 0:03:46.1]} 15. g3 {[%clk
0:02:25.4]} 15... Ng6 {[%clk 0:03:39.1]} 16. Nxd4 {[%clk 0:02:18.8]} 16... Nxd4
{[%clk 0:03:36.9]} 0-1

[Event "Live Chess"]
[Site "Chess.com"]
[Date "2023.05.20"]
[Round "-"]
[White "gmnorfolk"]
[Black "Davidagye"]
[Result "1-0"]
[WhiteElo "2184"]
[BlackElo "1656"]
[TimeControl "300"]
[EndTime "10:24:25 PDT"]
[Termination "gmnorfolk won by resignation"]

1. d4 {[%clk 0:04:57.9]} 1... d5 {[%clk 0:04:58.5]} 2. c4 {[%clk 0:04:57]} 2...
c6 {[%clk 0:04:58.1]} 3. Nf3 {[%clk 0:04:55.1]} 3... e6 {[%clk 0:04:56.9]} 4. g3
{[%clk 0:04:50.8]} 4... Nf6 {[%clk 0:04:55.2]} 5. Bg2 {[%clk 0:04:48.7]} 5...
dxc4 {[%clk 0:04:54.8]} 6. Ne5 {[%clk 0:04:46.4]} 6... Bb4+ {[%clk 0:04:43.6]}
7. Nc3 {[%clk 0:04:43.6]} 7... Qa5 {[%clk 0:04:18.7]} 8. O-O {[%clk 0:04:38]}
8... Bxc3 {[%clk 0:04:17.5]} 9. bxc3 {[%clk 0:04:34.1]} 9... Qxc3 {[%clk
0:04:17.1]} 10. Rb1 {[%clk 0:04:28.6]} 10... O-O {[%clk 0:04:13.8]} 11. e3
{[%clk 0:04:22.9]} 11... Nbd7 {[%clk 0:04:09]} 12. Bd2 {[%clk 0:04:21.6]} 12...
Qa3 {[%clk 0:04:05.8]} 13. Bb4 {[%clk 0:04:17.3]} 13... Qxa2 {[%clk 0:04:00]}
14. Bxf8 {[%clk 0:04:14.5]} 14... Kxf8 {[%clk 0:03:58.8]} 15. Ra1 {[%clk
0:04:09.7]} 15... Qb3 {[%clk 0:03:45.5]} 16. Qxb3 {[%clk 0:03:55.4]} 16... cxb3
{[%clk 0:03:43.5]} 17. Nc4 {[%clk 0:03:52.7]} 17... b5 {[%clk 0:03:18.1]} 18.
Bxc6 {[%clk 0:03:48.2]} 18... bxc4 {[%clk 0:03:15.9]} 19. Bxa8 {[%clk
0:03:46.4]} 19... c3 {[%clk 0:03:11.4]} 20. Rxa7 {[%clk 0:03:35.6]} 20... b2
{[%clk 0:03:05.1]} 21. Rc7 {[%clk 0:03:31.3]} 21... Nb6 {[%clk 0:02:51.9]} 22.
Rxc3 {[%clk 0:03:26.9]} 22... Nfd5 {[%clk 0:02:44]} 23. Bxd5 {[%clk 0:03:22.3]}
23... exd5 {[%clk 0:02:39]} 24. Rb1 {[%clk 0:03:16.4]} 24... Nc4 {[%clk
0:02:36.8]} 25. Rxc4 {[%clk 0:03:10.1]} 25... dxc4 {[%clk 0:02:35.8]} 26. Rxb2
{[%clk 0:03:09.5]} 26... Bf5 {[%clk 0:02:34.5]} 27. Rb4 {[%clk 0:03:02.6]} 27...
c3 {[%clk 0:02:32.7]} 28. Rc4 {[%clk 0:03:01.7]} 28... c2 {[%clk 0:02:31.7]} 29.
f3 {[%clk 0:02:59.4]} 29... Bd3 {[%clk 0:02:30.4]} 30. Rc3 {[%clk 0:02:58.6]}
30... Ke7 {[%clk 0:02:29.6]} 31. Kf2 {[%clk 0:02:57.6]} 31... Kd6 {[%clk
0:02:25.9]} 32. Ke1 {[%clk 0:02:57.1]} 32... Kd5 {[%clk 0:02:25.3]} 33. Kd2
{[%clk 0:02:56.6]} 33... Bg6 {[%clk 0:02:23.5]} 34. Rc5+ {[%clk 0:02:52.6]}
34... Kd6 {[%clk 0:02:22.3]} 35. e4 {[%clk 0:02:51.7]} 35... f6 {[%clk
0:02:19.8]} 36. Rxc2 {[%clk 0:02:49.4]} 1-0